fUSD/lending_fUSD_20250101
["ID","MTS","AMOUNT","RATE_DAILY","PERIOD"]
[347365702,1735734648017,-2118.63,0.00010958,2]
[347365703,1735734648027,-2463.14,0.00010958,2]
[347365704,1735734648039,-500.0,0.00010958,2]
[347365705,1735734648049,-578.29,0.00010958,2]
[347365706,1735734648059,-1509.58,0.00010958,2]
[347365707,1735734648069,-698.56,0.00010958,2]
[347365708,1735734648079,-940.27,0.00010958,2]
[347365709,1735734648090,-752.03,0.00010958,2]
[347365710,1735734648100,-821.96,0.00010958,2]
[347365711,1735734648110,-530.86,0.00010958,2]
[347365712,1735734648119,-1422.12,0.00010958,2]
[347365713,1735734648130,-500.0,0.00010958,2]
[347365714,1735734648140,-500.0,0.00010958,2]
[347365715,1735734648149,-1363.06,0.00010958,2]
[347365716,1735734648160,-599.13,0.00010958,2]
[347365717,1735734648170,-532.68,0.00010958,2]
[347365718,1735734648180,-500.0,0.00010958,2]
[347365719,1735734648190,-618.72,0.00010958,2]
[347365720,1735734648199,-693.17,0.00010958,2]
[347365721,1735734648209,-902.63,0.00010958,2]
[347365722,1735734648219,-500.0,0.00010958,2]
[347365723,1735734648229,-972.39,0.00010958,2]
[347365724,1735734648240,-2758.52,0.00010958,2]
[347365725,1735734648250,-808.24,0.00010958,2]
[347365726,1735734648260,-711.35,0.00010958,2]
[347365727,1735734648270,-2150.54,0.00010958,2]
[347365728,1735734648281,-1357.9,0.00010958,2]
[347365729,1735734648290,-2606.6,0.00010958,2]
[347365730,1735734648300,-7500.0,0.00010958,2]
[347365731,1735734648310,-500.0,0.00010958,2]
[347365732,1735734648320,-919.08,0.00010958,2]
[347365733,1735734648330,-500.0,0.00010958,2]
[347365734,1735734648341,-500.0,0.00010958,2]
[347365735,1735734648351,-1959.65,0.00010958,2]
[347365736,1735734648361,-160.506192,0.00010958,2]
[347365737,1735734648371,-500.0,0.00010958,2]
[347365738,1735734648381,-500.0,0.00010958,2]
[347365739,1735734648391,-540.52,0.00010958,2]
[347365740,1735734648401,-567.27,0.00010958,2]
[347365741,1735734648411,-500.0,0.00010958,2]
[347365742,1735734648421,-1277.0,0.00010958,2]
[347365743,1735734648431,-2902.28,0.00010958,2]
[347365744,1735734648441,-2165.63,0.00010958,2]
[347365745,1735734648450,-500.0,0.00010958,2]
[347365746,1735734648460,-2349.11,0.00010958,2]
[347365747,1735734648470,-695.45,0.00010958,2]
[347365748,1735734648481,-6427.74,0.00010958,2]
[347365749,1735734648495,-500.0,0.00010958,2]
[347365750,1735734648505,-816.66,0.00010958,2]
[347365751,1735734648515,-623.33,0.00010958,2]
[347365752,1735734648526,-500.0,0.00010958,2]
[347365753,1735734648536,-1210.59,0.00010958,2]
[347365754,1735734648546,-841.72,0.00010958,2]
[347365755,1735734648556,-2479.88,0.00010958,2]
[347365756,1735734648566,-757.63,0.00010958,2]
[347365757,1735734648576,-500.0,0.00010958,2]
[347365758,1735734648585,-500.0,0.00010958,2]
[347365759,1735734648596,-14439.3,0.00010958,2]
[347365760,1735734648606,-500.0,0.00010958,2]
[347365761,1735734648616,-2988.79,0.00010958,2]
[347365762,1735734648626,-578.41,0.00010958,2]
[347365763,1735734648636,-500.0,0.00010958,2]
[347365764,1735734648646,-500.0,0.00010958,2]
[347365765,1735734648656,-630.89,0.00010958,2]
[347365766,1735734648668,-500.0,0.00010958,2]
[347365767,1735734648679,-1229.38,0.00010958,2]
[347365768,1735734648688,-3946.56,0.00010958,2]
[347365769,1735734648699,-2336.85,0.00010958,2]
[347365770,1735734648710,-627.51,0.00010958,2]
[347365771,1735734648719,-500.0,0.00010958,2]
[347365772,1735734648729,-781.28,0.00010958,2]
[347365773,1735734648741,-500.0,0.00010958,2]
[347365774,1735734648751,-1174.68,0.00010958,2]
[347365775,1735734648760,-1372.65,0.00010958,2]
[347365776,1735734648770,-1374.12,0.00010958,2]
[347365777,1735734648780,-1712.48,0.00010958,2]
[347365778,1735734648790,-1053.87,0.00010958,2]
[347365779,1735734648800,-500.0,0.00010958,2]
[347365780,1735734648810,-500.0,0.00010958,2]
[347365781,1735734648820,-1339.21,0.00010958,2]
[347365782,1735734648830,-1024.35,0.00010958,2]
[347365783,1735734648839,-17392.33,0.00010958,2]
[347365784,1735734648850,-500.0,0.00010958,2]
[347365785,1735734648859,-731.29,0.00010958,2]
[347365786,1735734648869,-1371.57,0.00010958,2]
[347365787,1735734648878,-500.0,0.00010958,2]
[347365788,1735734648888,-10807.88,0.00010958,2]
[347365789,1735734648902,-998.22,0.00010958,2]
[347365790,1735734648911,-2433.09,0.00010958,2]
[347365791,1735734648921,-500.0,0.00010958,2]
[347365792,1735734648931,-5203.65,0.00010958,2]
[347365793,1735734648941,-500.0,0.00010958,2]
[347365794,1735734648950,-1876.86,0.00010958,2]
[347365795,1735734648960,-3764.31,0.00010958,2]
[347365796,1735734648970,-500.0,0.00010958,2]
[347365797,1735734648979,-500.0,0.00010958,2]
[347365798,1735734648990,-1761.67,0.00010958,2]
[347365799,1735734649001,-1638.56,0.00010958,2]
[347365800,1735734649013,-2440.35,0.00010958,2]
[347365801,1735734649023,-966.4,0.00010958,2]
[347365802,1735734649034,-500.0,0.00010958,2]
[347365803,1735734649046,-1800.47,0.00010958,2]
[347365804,1735734649055,-1838.35,0.00010958,2]
[347365805,1735734649065,-502.58,0.00010958,2]
[347365806,1735734649075,-1608.47,0.00010958,2]
[347365807,1735734649084,-2035.82,0.00010958,2]
[347365808,1735734649095,-500.0,0.00010958,2]
[347365809,1735734649106,-500.0,0.00010958,2]
[347365810,1735734649115,-6658.13,0.00010958,2]
[347365811,1735734649125,-2442.94,0.00010958,2]
[347365812,1735734649135,-816.84,0.00010958,2]
[347365813,1735734649146,-500.0,0.00010958,2]
[347365814,1735734649155,-500.0,0.00010958,2]
[347365815,1735734649165,-1448.43,0.00010958,2]
[347365816,1735734649175,-969.36,0.00010958,2]
[347365817,1735734649185,-500.0,0.00010958,2]
[347365818,1735734649194,-5871.0,0.00010958,2]
[347365819,1735734649204,-841.22,0.00010958,2]
[347365820,1735734649214,-1384.68,0.00010958,2]
[347365821,1735734649224,-500.0,0.00010958,2]
[347365822,1735734649235,-500.0,0.00010958,2]
[347365823,1735734649245,-524.42,0.00010958,2]
[347365824,1735734649255,-500.0,0.00010958,2]
[347365825,1735734649265,-500.0,0.00010958,2]
[347365826,1735734649275,-500.0,0.00010958,2]
[347365827,1735734649285,-664.71,0.00010958,2]
[347365828,1735734649295,-500.0,0.00010958,2]
[347365829,1735734649305,-500.0,0.00010958,2]
[347365830,1735734649315,-501.93,0.00010958,2]
[347365831,1735734649325,-1070.26,0.00010958,2]
[347365832,1735734649335,-500.0,0.00010958,2]
[347365833,1735734649345,-1725.69,0.00010958,2]
[347365834,1735734649354,-2077.23,0.00010958,2]
[347365835,1735734649364,-701.86,0.00010958,2]
[347365836,1735734649374,-1165.37,0.00010958,2]
[347365837,1735734649384,-500.0,0.00010958,2]
[347365838,1735734649394,-575.57,0.00010958,2]
[347365839,1735734649404,-500.0,0.00010958,2]
[347365840,1735734649413,-2446.78,0.00010958,2]
[347365841,1735734649423,-2910.07,0.00010958,2]
[347365842,1735734649433,-500.0,0.00010958,2]
[347365843,1735734649442,-500.0,0.00010958,2]
[347365844,1735734649453,-500.0,0.00010958,2]
[347365845,1735734649463,-2233.36,0.00010958,2]
[347365846,1735734649472,-1605.8,0.00010958,2]
[347365847,1735734649482,-500.0,0.00010958,2]
[347365848,1735734649586,-4277.58,0.00010958,2]
[347365849,1735734649595,-1117.61,0.00010958,2]
[347365850,1735734649604,-4339.96,0.00010958,2]
[347365851,1735734649614,-1050.38,0.00010958,2]
[347365852,1735734649623,-914.21,0.00010958,2]
[347365853,1735734649632,-554.14,0.00010958,2]
[347365854,1735734649642,-500.0,0.00010958,2]
[347365855,1735734649651,-500.0,0.00010958,2]
[347365856,1735734649660,-1793.63,0.00010958,2]
[347365857,1735734649669,-500.0,0.00010958,2]
[347365858,1735734649680,-4152.06,0.00010958,2]
[347365859,1735734649689,-733.3,0.00010958,2]
[347365860,1735734649706,-3844.6,0.00010958,2]
[347365861,1735734649719,-1727.73,0.00010958,2]
[347365862,1735734649729,-500.0,0.00010958,2]
[347365863,1735734649740,-828.28,0.00010958,2]
[347365864,1735734649761,-614.58,0.00010958,2]
[347365865,1735734649771,-2588.93,0.00010958,2]
[347365866,1735734649782,-235.50945022,0.00010958,2]
[347365867,1735734649792,-1852.78,0.00010958,2]
[347365868,1735734649801,-1765.5,0.00010958,2]
[347365869,1735734649810,-670.74,0.00010958,2]
[347365870,1735734649820,-500.0,0.00010958,2]
[347365871,1735734649829,-500.0,0.00010958,2]
[347365872,1735734649839,-2077.27,0.00010958,2]
[347365873,1735734649848,-526.56,0.00010958,2]
[347365874,1735734649858,-14518.61,0.00010958,2]
[347365875,1735734649867,-500.0,0.00010958,2]
[347365876,1735734649877,-508.06,0.00010958,2]
[347365877,1735734649886,-2101.54,0.00010958,2]
[347365878,1735734649896,-5102.78,0.00010958,2]
[347365879,1735734649905,-1954.6,0.00010958,2]
[347365880,1735734649915,-6820.8,0.00010958,2]
[347365881,1735734649924,-1451.8,0.00010958,2]
[347365882,1735734649933,-500.0,0.00010958,2]
[347365883,1735734649942,-907.56,0.00010958,2]
[347365884,1735734649952,-500.0,0.00010958,2]
[347365885,1735734649962,-1373.19,0.00010958,2]
[347365886,1735734649972,-10424.34,0.00010958,2]
[347365887,1735734649981,-500.0,0.00010958,2]
[347365888,1735734649992,-1546.73,0.00010958,2]
[347365889,1735734650003,-802.08,0.00010958,2]
[347365890,1735734650014,-500.0,0.00010958,2]
[347365891,1735734650023,-500.0,0.00010958,2]
[347365892,1735734650033,-2291.66,0.00010958,2]
[347365893,1735734650043,-1785.24,0.00010958,2]
[347365894,1735734650053,-703.36,0.00010958,2]
[347365895,1735734650062,-1607.78,0.00010958,2]
[347365896,1735734650071,-763.93,0.00010958,2]
[347365897,1735734650082,-1341.39,0.00010958,2]
[347365898,1735734650092,-500.0,0.00010958,2]
[347365899,1735734650101,-4583.97,0.00010958,2]
[347365900,1735734650110,-3369.74,0.00010958,2]
[347365901,1735734650120,-1835.43,0.00010958,2]
[347365902,1735734650129,-1434.42,0.00010958,2]
[347365903,1735734650139,-1491.07,0.00010958,2]
[347365904,1735734650149,-5802.41,0.00010958,2]
[347365905,1735734650158,-500.0,0.00010958,2]
[347365906,1735734650167,-2081.35,0.00010958,2]
[347365907,1735734650176,-500.0,0.00010958,2]
[347365908,1735734650186,-4566.07,0.00010958,2]
[347365909,1735734650195,-1852.63,0.00010958,2]
[347365910,1735734650205,-2033.99,0.00010958,2]
[347365911,1735734650214,-662.68,0.00010958,2]
[347365912,1735734650224,-500.0,0.00010958,2]
[347365913,1735734650233,-2044.39,0.00010958,2]
[347365914,1735734650244,-500.0,0.00010958,2]
[347365915,1735734650254,-1957.35,0.00010958,2]
[347365916,1735734650264,-6148.04,0.00010958,2]
[347365917,1735734650273,-3726.37,0.00010958,2]
[347365918,1735734650283,-1434.25,0.00010958,2]
[347365919,1735734650292,-500.0,0.00010958,2]
[347365920,1735734650301,-500.0,0.00010958,2]
[347365921,1735734650311,-500.0,0.00010958,2]
[347365922,1735734650320,-571.71,0.00010958,2]
[347365923,1735734650329,-500.0,0.00010958,2]
[347365924,1735734650339,-500.0,0.00010958,2]
[347365925,1735734650348,-1816.84,0.00010958,2]
[347365926,1735734650358,-14420.01,0.00010958,2]
[347365927,1735734650367,-849.54,0.00010958,2]
[347365928,1735734650377,-3228.99,0.00010958,2]
[347365929,1735734650387,-659.36,0.00010958,2]
[347365930,1735734650396,-500.0,0.00010958,2]
[347365931,1735734650406,-979.22,0.00010958,2]
[347365932,1735734650416,-500.0,0.00010958,2]
[347365933,1735734650426,-1477.25,0.00010958,2]
[347365934,1735734650435,-4320.51,0.00010958,2]
[347365935,1735734650446,-500.0,0.00010958,2]
[347365936,1735734650455,-958.52,0.00010958,2]
[347365937,1735734650465,-500.0,0.00010958,2]
[347365938,1735734650475,-1957.43,0.00010958,2]
[347365939,1735734650485,-623.09,0.00010958,2]
[347365940,1735734650497,-1235.3,0.00010958,2]
[347365941,1735734650507,-2815.66,0.00010958,2]
[347365942,1735734650517,-9646.54,0.00010958,2]
[347365943,1735734650526,-1501.74,0.00010958,2]
[347365944,1735734650535,-4850.21,0.00010958,2]
[347365945,1735734650545,-500.0,0.00010958,2]
[347365946,1735734650555,-3665.48,0.00010958,2]
[347365947,1735734650564,-500.0,0.00010958,2]
[347365948,1735734650574,-1229.36,0.00010958,2]
[347365949,1735734650583,-2801.35,0.00010958,2]
[347365950,1735734650592,-500.0,0.00010958,2]
[347365951,1735734650602,-26144.28,0.00010958,2]
[347365952,1735734650611,-4128.61,0.00010958,2]
[347365953,1735734650620,-1365.5,0.00010958,2]
[347365954,1735734650630,-4055.7,0.00010958,2]
[347365955,1735734650641,-500.0,0.00010958,2]
[347365956,1735734650651,-649.93,0.00010958,2]
[347365957,1735734650660,-2883.34,0.00010958,2]
[347365958,1735734650669,-2680.93,0.00010958,2]
[347365959,1735734650679,-500.0,0.00010958,2]
[347365960,1735734650689,-862.97,0.00010958,2]
[347365961,1735734650698,-500.0,0.00010958,2]
[347365962,1735734650708,-678.7,0.00010958,2]
[347365963,1735734650717,-3175.63,0.00010958,2]
[347365964,1735734650727,-4523.04,0.00010958,2]
[347365965,1735734650736,-681.47,0.00010958,2]
[347365966,1735734650746,-1154.79,0.00010958,2]
[347365967,1735734650755,-800.85,0.00010958,2]
[347365968,1735734650765,-3291.88,0.00010958,2]
[347365969,1735734650774,-985.53,0.00010958,2]
[347365970,1735734650784,-1210.85632326,0.00010958,2]
[347365971,1735734651567,-179.04367674,0.00010958,2]
[347365972,1735734651577,-504.85632327,0.00010958,2]
[347365973,1735734652727,-500.0,0.00010575,2]
[347365974,1735734652737,-809.04367673,0.00010958,2]
[347365975,1735734652748,-10262.16,0.00010958,2]
[347365976,1735734652758,-4482.82,0.00010958,2]
[347365977,1735734652768,-886.48,0.00010958,2]
[347365978,1735734652778,-16786.82,0.00010958,2]
[347365979,1735734652788,-500.0,0.00010958,2]
[347365980,1735734652798,-500.0,0.00010958,2]
[347365981,1735734652808,-5919.34,0.00010958,2]
[347365982,1735734652818,-539.3,0.00010958,2]
[347365983,1735734652827,-500.0,0.00010958,2]
[347365984,1735734652838,-500.0,0.00010958,2]
[347365985,1735734652848,-1233.14,0.00010958,2]
[347365986,1735734652858,-2404.07,0.00010958,2]
[347365987,1735734652867,-1962.22,0.00010958,2]
[347365988,1735734652877,-5873.82,0.00010958,2]
[347365989,1735734652887,-1881.93,0.00010958,2]
[347365990,1735734652897,-962.07,0.00010958,2]
[347365991,1735734652907,-5197.56,0.00010958,2]
[347365992,1735734652917,-500.0,0.00010958,2]
[347365993,1735734652927,-2476.15,0.00010958,2]
[347365994,1735734652937,-2517.19,0.00010958,2]
[347365995,1735734652947,-3654.6,0.00010958,2]
[347365996,1735734652958,-718.82,0.00010958,2]
[347365997,1735734652968,-1618.96,0.00010958,2]
[347365998,1735734652978,-2386.64,0.00010958,2]
[347365999,1735734652988,-3147.28,0.00010958,2]
[347366000,1735734652998,-6585.68071587,0.00010958,2]
[347366001,1735734653015,-24074.15928413,0.00010958,2]
[347366002,1735734653025,-500.0,0.00010958,2]
[347366003,1735734653035,-1229.51,0.00010958,2]
[347366004,1735734653046,-784.68,0.00010958,2]
[347366005,1735734653057,-1662.87,0.00010958,2]
[347366006,1735734653067,-2853.91,0.00010958,2]
[347366007,1735734653077,-660.75,0.00010958,2]
[347366008,1735734653090,-9233.15,0.00010958,2]
[347366009,1735734653102,-500.0,0.00010958,2]
[347366010,1735734653420,-500.0,0.00010958,2]
[347366011,1735734653429,-500.0,0.00010958,2]
[347366012,1735734653439,-500.0,0.00010958,2]
[347366013,1735734653448,-1867.16,0.00010958,2]
[347366014,1735734653457,-1630.17,0.00010958,2]
[347366015,1735734653467,-10447.34,0.00010958,2]
[347366016,1735734653476,-1105.94,0.00010958,2]
[347366017,1735734653485,-4778.9,0.00010958,2]
[347366018,1735734653496,-500.0,0.00010958,2]
[347366019,1735734653506,-1417.07,0.00010958,2]
[347366020,1735734653516,-874.79,0.00010958,2]
[347366021,1735734653525,-1632.27,0.00010958,2]
[347366022,1735734653535,-1870.18,0.00010958,2]
[347366023,1735734653544,-500.0,0.00010958,2]
[347366024,1735734653555,-1901.67,0.00010958,2]
[347366025,1735734653564,-3727.82,0.00010958,2]
[347366026,1735734653574,-2082.59,0.00010958,2]
[347366027,1735734653583,-500.0,0.00010958,2]
[347366028,1735734653592,-3503.79,0.00010958,2]
[347366029,1735734653602,-886.22,0.00010958,2]
[347366030,1735734653611,-500.0,0.00010958,2]
[347366031,1735734653620,-5097.14,0.00010958,2]
[347366032,1735734653629,-1838.02,0.00010958,2]
[347366033,1735734653639,-500.0,0.00010958,2]
[347366034,1735734653648,-500.0,0.00010958,2]
[347366035,1735734653657,-920.8,0.00010958,2]
[347366036,1735734653668,-500.0,0.00010958,2]
[347366037,1735734653677,-1200.12,0.00010958,2]
[347366038,1735734653687,-214.25091213,0.00010958,2]
[347366039,1735734653695,-554.17,0.00010958,2]
[347366040,1735734653705,-1625.13,0.00010958,2]
[347366041,1735734653718,-758.7,0.00010958,2]
[347366042,1735734653728,-888.45,0.00010958,2]
[347366043,1735734653738,-500.0,0.00010958,2]
[347366044,1735734653748,-500.0,0.00010958,2]
[347366045,1735734653757,-4922.26,0.00010958,2]
[347366046,1735734653767,-429.99,0.00010958,2]
[347366047,1735734653776,-2704.31,0.00010958,2]
[347366048,1735734653785,-2189.96,0.00010958,2]
[347366049,1735734653795,-510.02,0.00010958,2]
[347366050,1735734653804,-1817.68,0.00010958,2]
[347366051,1735734653814,-1279.65,0.00010958,2]
[347366052,1735734653823,-2013.05,0.00010958,2]
[347366053,1735734653832,-486.82810322,0.00010958,2]
[347366054,1735734653842,-1553.01,0.00010958,2]
[347366055,1735734653851,-3342.47,0.00010958,2]
[347366056,1735734653861,-982.93,0.00010958,2]
[347366057,1735734653871,-2046.8,0.00010958,2]
[347366058,1735734653880,-500.0,0.00010958,2]
[347366059,1735734653890,-913.65,0.00010958,2]
[347366060,1735734653900,-2066.3,0.00010958,2]
[347366061,1735734653909,-1562.98,0.00010958,2]
[347366062,1735734653919,-876.66,0.00010958,2]
[347366063,1735734653930,-2270.26,0.00010958,2]
[347366064,1735734653941,-2053.83,0.00010958,2]
[347366065,1735734653951,-6998.1,0.00010958,2]
[347366066,1735734653961,-500.0,0.00010958,2]
[347366067,1735734653971,-864.04,0.00010958,2]
[347366068,1735734653980,-931.5,0.00010958,2]
[347366069,1735734653992,-1816.6,0.00010958,2]
[347366070,1735734654002,-2324.41,0.00010958,2]
[347366071,1735734654014,-3586.9,0.00010958,2]
[347366072,1735734654024,-3330.5,0.00010958,2]
[347366073,1735734654034,-1779.54,0.00010958,2]
[347366074,1735734654044,-3862.52,0.00010958,2]
[347366075,1735734654054,-642.7,0.00010958,2]
[347366076,1735734654064,-1754.88,0.00010958,2]
[347366077,1735734654074,-1904.96,0.00010958,2]
[347366078,1735734654084,-1064.28,0.00010958,2]
[347366079,1735734654094,-822.51,0.00010958,2]
[347366080,1735734654103,-1745.79,0.00010958,2]
[347366081,1735734654113,-3424.86,0.00010958,2]
[347366082,1735734654122,-909.7,0.00010958,2]
[347366083,1735734654132,-897.18,0.00010958,2]
[347366084,1735734654141,-1797.14,0.00010958,2]
[347366085,1735734654151,-500.0,0.00010958,2]
[347366086,1735734654161,-2084.68,0.00010958,2]
[347366087,1735734654170,-500.0,0.00010958,2]
[347366088,1735734654179,-15304.18,0.00010958,2]
[347366089,1735734654189,-500.0,0.00010958,2]
[347366090,1735734654200,-8704.74,0.00010958,2]
[347366091,1735734654209,-557.57,0.00010958,2]
[347366092,1735734654219,-500.0,0.00010958,2]
[347366093,1735734654229,-500.0,0.00010958,2]
[347366094,1735734654239,-521.53,0.00010958,2]
[347366095,1735734654249,-745.38,0.00010958,2]
[347366096,1735734654259,-500.0,0.00010958,2]
[347366097,1735734654268,-500.0,0.00010958,2]
[347366098,1735734654278,-1685.79,0.00010958,2]
[347366099,1735734654287,-6049.54,0.00010958,2]
[347366100,1735734654296,-155.695156,0.00010958,2]
[347366101,1735734654306,-500.0,0.00010958,2]
[347366102,1735734654315,-500.0,0.00010958,2]
[347366103,1735734654325,-501.13,0.00010958,2]
[347366104,1735734654334,-495.92,0.00010958,2]
[347366105,1735734654343,-500.0,0.00010973,2]
[347366106,1735734654353,-500.0,0.00010973,2]
[347366107,1735734654362,-500.0,0.00010973,2]
[347366108,1735734654371,-2090.27067399,0.0001098,2]
[347366109,1735734654396,-3253.2053238,0.0001098,2]
[347366110,1735734654452,-2018.50135938,0.0001098,2]
[347366111,1735734654470,-1875.91973418,0.0001098,2]
[347366112,1735734654481,-3921.81580609,0.0001098,2]
[347366113,1735734654517,-500.0,0.00010958,2]
[347366114,1735734654527,-620.07727721,0.0001098,2]
[347366115,1735734654538,-1080.59191858,0.0001098,2]
[347366116,1735734654548,-470.26662024,0.0001098,2]
[347366117,1735734654559,-644.42887971,0.0001098,2]
[347366118,1735734657761,-497.39,0.000108,2]
[347366119,1735734667116,700.0,0.00010575,2]
[347366120,1735734670090,500.0,9.9e-05,3]
[347366121,1735734672270,1100.0,0.0001,3]
[347366122,1735734674521,1700.0,0.000101,3]
[347366123,1735734676783,2300.0,0.000102,3]
[347366124,1735734678970,2900.0,0.000103,3]
[347366125,1735734681089,302.61,0.000104,3]
[347366129,1735735026922,382.41,8.219e-05,2]
[347366136,1735735831724,-189.93,9.778e-05,2]
[347366137,1735735831733,-197.09289021,9.778e-05,2]
[347366138,1735735831835,-2537.55774827,9.778e-05,2]
[347366139,1735735831899,-2963.29936152,9.778e-05,2]
[347366140,1735735831908,-153.92,9.843e-05,2]
[347366141,1735735831917,-150.0,9.888e-05,2]
[347366142,1735735831926,-150.0,9.888e-05,2]
[347366143,1735735831935,-150.0,9.888e-05,2]
[347366144,1735735831945,-1000.0,9.979e-05,2]
[347366145,1735735831955,-250.0,9.999e-05,2]
[347366146,1735735831964,-253.88,0.00010031,2]
[347366147,1735735831973,-300.0,0.00010161,2]
[347366148,1735735831982,-150.0,0.00010162,2]
[347366149,1735735831991,-150.0,0.00010254,2]
[347366150,1735735832000,-150.0,0.00010254,2]
[347366151,1735735832010,-771.32,0.00010341,2]
[347366153,1735735832019,-509.53,0.0001042,2]
[347366155,1735735832028,-150.0,0.00010437,2]
[347366157,1735735832037,-382.41,0.00010475,2]
[347366158,1735735832047,-150.0,0.0001062,2]
[347366159,1735735832056,-150.0,0.0001062,2]
[347366160,1735735832065,-1486.2106,0.000107,2]
[347366161,1735735832074,-150.0,0.00010712,2]
[347366162,1735735832084,-1129.329,0.000108,2]
[347366163,1735735832095,-168.883,0.000108,2]
[347366164,1735735832104,-1000.0,0.00010858,2]
[347366165,1735735832113,-9598.303099,0.00010858,2]
[347366166,1735735832130,-4284.86589823,0.00010858,2]
[347366167,1735735832158,-1859.0000001,0.00010858,2]
[347366168,1735735832170,-3368.91933,0.00010858,2]
[347366173,1735735837567,-446.79742223,0.00010858,2]
[347366174,1735735837622,-1525.63105044,0.00010858,2]
[347366175,1735735837632,-5135.33184698,0.00010858,2]
[347366176,1735735837643,-7573.74985302,0.00010858,2]
[347366177,1735735837652,-1179.3305,0.00010858,2]
[347366178,1735735837661,-200.0,0.00010864,2]
[347366179,1735735837670,-323.86111442,0.000109,2]
[347366180,1735735837680,-327.02292224,0.000109,2]
[347366181,1735735837689,-501.81,0.00010935,2]
[347366182,1735735837697,-572.52843562,0.00010957,2]
[347366183,1735735837706,-500.0,0.00010958,2]
[347366184,1735735837716,-500.0,0.00010958,2]
[347366185,1735735837725,-500.0,0.00010958,2]
[347366186,1735735837734,-500.0,0.00010958,2]
[347366187,1735735837743,-500.0,0.00010958,2]
[347366188,1735735837752,-368.4030658,0.00010958,2]
[347366189,1735735837762,-500.0,0.00010958,2]
[347366190,1735735837771,-500.0,0.00010958,2]
[347366191,1735735837780,-500.0,0.00010958,2]
[347366192,1735735837789,-500.0,0.00010958,2]
[347366193,1735735837798,-500.0,0.00010958,2]
[347366194,1735735837807,-500.0,0.00010958,2]
[347366195,1735735837816,-500.0,0.00010958,2]
[347366196,1735735837825,-500.0,0.00010958,2]
[347366197,1735735837834,-863.13,0.00010958,2]
[347366198,1735735837844,-500.0,0.00010958,2]
[347366199,1735735837853,-500.0,0.00010958,2]
[347366200,1735735837862,-500.0,0.00010958,2]
[347366201,1735735837871,-500.0,0.00010958,2]
[347366202,1735735837880,-500.0,0.00010958,2]
[347366203,1735735837890,-2699.17,0.00010958,2]
[347366204,1735735837899,-431.63825061,0.00010958,2]
[347366206,1735735837912,-68.36174939,0.00010958,2]
[347366208,1735735837921,-500.0,0.00010958,2]
[347366210,1735735837930,-1987.14,0.00010958,2]
[347366211,1735735837940,-572.22,0.00010958,2]
[347366212,1735735837949,-506.83,0.00010958,2]
[347366213,1735735837958,-500.0,0.00010958,2]
[347366215,1735735837968,-1568.17,0.00010958,2]
[347366217,1735735837977,-500.0,0.00010958,2]
[347366219,1735735837986,-638.07,0.00010958,2]
[347366221,1735735837995,-1367.62,0.00010958,2]
[347366223,1735735838005,-500.0,0.00010958,2]
[347366225,1735735838014,-500.0,0.00010958,2]
[347366228,1735735838023,-1336.08105015,0.00010958,2]